fUSD/lending_fUSD_20240116
["ID","MTS","AMOUNT","RATE_DAILY","PERIOD"]
[311826803,1705439463254,-2121.21,0.00032876,2]
[311826804,1705439463264,-973.55,0.00032876,2]
[311826805,1705439463274,-500.0,0.00032876,2]
[311826806,1705439463284,-500.0,0.00032876,2]
[311826807,1705439463294,-500.0,0.00032876,2]
[311826808,1705439463303,-500.0,0.00032876,2]
[311826809,1705439463312,-500.0,0.00032876,2]
[311826810,1705439463322,-804.74,0.00032876,2]
[311826811,1705439463332,-1737.57,0.00032876,2]
[311826812,1705439463342,-500.0,0.00032876,2]
[311826813,1705439463352,-500.0,0.00032876,2]
[311826814,1705439463362,-505.03802955,0.00032876,2]
[311826815,1705439463372,-1482.77,0.00032876,2]
[311826816,1705439463381,-500.0,0.00032876,2]
[311826817,1705439463391,-705.17,0.00032876,2]
[311826818,1705439463401,-3132.6,0.00032876,2]
[311826819,1705439463410,-500.0,0.00032876,2]
[311826820,1705439463421,-500.0,0.00032876,2]
[311826821,1705439463431,-500.0,0.00032876,2]
[311826822,1705439463441,-582.89,0.00032876,2]
[311826823,1705439463452,-2151.38,0.00032876,2]
[311826824,1705439463465,-1087.44,0.00032876,2]
[311826825,1705439463475,-500.0,0.00032876,2]
[311826826,1705439463485,-500.0,0.00032876,2]
[311826827,1705439463495,-500.0,0.00032876,2]
[311826828,1705439463505,-500.94064196,0.00032876,2]
[311826829,1705439463516,-500.0,0.00032876,7]
[311826830,1705439463526,-500.0,0.00032876,7]
[311826831,1705439463536,-196.63008941,0.00032876,7]
[311826832,1705439463546,-500.0,0.00032876,7]
[311826833,1705439463556,-500.0,0.00032876,7]
[311826834,1705439463566,-500.0,0.00032876,7]
[311826835,1705439463578,-500.0,0.00032876,7]
[311826836,1705439463587,-1281.68,0.00032876,2]
[311826837,1705439463597,-500.0,0.00032876,2]
[311826838,1705439463608,-500.0,0.00032876,2]
[311826839,1705439463620,-500.0,0.00032876,2]
[311826840,1705439463630,-500.0,0.00032876,2]
[311826841,1705439463641,-500.0,0.00032876,2]
[311826842,1705439463651,-1265.73,0.00032876,2]
[311826843,1705439463662,-1011.91,0.00032876,2]
[311826844,1705439463671,-500.0,0.00032876,2]
[311826845,1705439463682,-500.0,0.00032876,2]
[311826846,1705439463692,-500.0,0.00032876,2]
[311826847,1705439463702,-2030.1,0.00032876,2]
[311826848,1705439463714,-500.0,0.00032876,2]
[311826849,1705439463724,-500.0,0.00032876,2]
[311826850,1705439463737,-500.0,0.00032876,2]
[311826851,1705439463748,-1395.01,0.00032876,2]
[311826852,1705439463758,-1419.58,0.00032876,2]
[311826853,1705439463768,-500.0,0.00032876,2]
[311826854,1705439463778,-500.0,0.00032876,2]
[311826855,1705439463789,-500.0,0.00032876,2]
[311826856,1705439463799,-500.0,0.00032876,2]
[311826857,1705439463809,-500.0,0.00032876,2]
[311826858,1705439463819,-500.0,0.00032876,2]
[311826859,1705439463828,-592.21,0.00032876,2]
[311826860,1705439463838,-500.0,0.00032876,2]
[311826861,1705439463848,-500.0,0.00032876,2]
[311826862,1705439463857,-500.0,0.00032876,2]
[311826863,1705439463866,-500.0,0.00032876,2]
[311826864,1705439463876,-1486.83,0.00032876,2]
[311826865,1705439463886,-1225.74,0.00032876,2]
[311826866,1705439463896,-500.0,0.00032876,2]
[311826867,1705439463905,-1751.25,0.00032876,2]
[311826868,1705439463914,-500.0,0.00032876,2]
[311826869,1705439463924,-500.0,0.00032876,2]
[311826870,1705439463934,-516.78,0.00032876,2]
[311826871,1705439463943,-500.0,0.00032876,2]
[311826872,1705439463953,-500.0,0.00032876,2]
[311826873,1705439463962,-4304.34,0.00032876,2]
[311826874,1705439463972,-500.0,0.00032876,2]
[311826875,1705439463983,-500.0,0.00032876,2]
[311826876,1705439463993,-931.3,0.00032876,2]
[311826877,1705439464002,-500.0,0.00032876,2]
[311826878,1705439464012,-503.03063283,0.00032876,2]
[311826879,1705439464022,-500.0,0.00032876,2]
[311826880,1705439464031,-500.0,0.00032876,2]
[311826881,1705439464042,-623.41,0.00032876,2]
[311826882,1705439464052,-500.0,0.00032876,2]
[311826883,1705439464061,-909.27,0.00032876,2]
[311826884,1705439464071,-500.0,0.00032876,2]
[311826885,1705439464081,-1595.05,0.00032876,2]
[311826886,1705439464090,-1545.68,0.00032876,2]
[311826887,1705439464100,-500.0,0.00032876,2]
[311826888,1705439464110,-500.0,0.00032876,2]
[311826889,1705439464120,-586.49,0.00032876,2]
[311826890,1705439464130,-500.0,0.00032876,2]
[311826891,1705439464139,-500.0,0.00032876,2]
[311826892,1705439464151,-1553.25,0.00032876,2]
[311826893,1705439464165,-6399.24,0.00032876,2]
[311826894,1705439464174,-627.33,0.00032876,2]
[311826895,1705439464184,-500.0,0.00032876,2]
[311826896,1705439464195,-1705.12,0.00032876,2]
[311826897,1705439464204,-997.75,0.00032876,2]
[311826898,1705439464214,-2166.26,0.00032876,2]
[311826899,1705439464224,-1539.56,0.00032876,2]
[311826900,1705439464235,-500.0,0.00032876,2]
[311826901,1705439464245,-288.77605279,0.00032876,2]
[311826902,1705439464254,-500.0,0.00032876,2]
[311826903,1705439464264,-520.18,0.00032876,2]
[311826904,1705439464274,-500.0,0.00032876,2]
[311826905,1705439464284,-1241.52,0.00032876,2]
[311826906,1705439464294,-500.0,0.00032876,2]
[311826907,1705439464304,-1519.51,0.00032876,2]
[311826908,1705439464315,-500.0,0.00032876,2]
[311826909,1705439464325,-5494.12,0.00032876,2]
[311826910,1705439464335,-500.0,0.00032876,2]
[311826911,1705439464346,-500.0,0.00032876,2]
[311826912,1705439464356,-500.0,0.00032876,2]
[311826913,1705439464367,-500.0,0.00032876,2]
[311826914,1705439464377,-500.0,0.00032876,2]
[311826915,1705439464387,-3078.78,0.00032876,2]
[311826916,1705439464397,-505.84558159,0.00032876,2]
[311826917,1705439464407,-500.0,0.00032876,2]
[311826918,1705439464417,-500.0,0.00032876,2]
[311826919,1705439464427,-500.0,0.00032876,2]
[311826920,1705439464437,-500.0,0.00032876,2]
[311826921,1705439464447,-862.01,0.00032876,2]
[311826922,1705439464457,-500.0,0.00032876,2]
[311826923,1705439464467,-537.62871768,0.00032876,2]
[311826924,1705439464477,-500.0,0.00032876,2]
[311826925,1705439464488,-500.0,0.00032876,2]
[311826926,1705439464498,-3586.01,0.00032876,2]
[311826927,1705439464518,-500.0,0.00032876,2]
[311826928,1705439464857,-500.0,0.00032876,2]
[311826929,1705439464866,-500.0,0.00032876,2]
[311826930,1705439464876,-2034.25,0.00032876,2]
[311826931,1705439464885,-607.98,0.00032876,2]
[311826932,1705439464894,-500.0,0.00032876,2]
[311826933,1705439464904,-500.0,0.00032876,2]
[311826934,1705439464913,-500.0,0.00032876,2]
[311826935,1705439464923,-500.0,0.00032876,2]
[311826936,1705439464933,-500.0,0.00032876,2]
[311826937,1705439464944,-580.91,0.00032876,2]
[311826938,1705439464954,-500.0,0.00032876,2]
[311826939,1705439464965,-1819.86,0.00032876,2]
[311826940,1705439464975,-5423.77,0.00032876,5]
[311826941,1705439464986,-4491.92,0.00032876,2]
[311826942,1705439464996,-500.0,0.00032876,2]
[311826943,1705439465005,-500.0,0.00032876,2]
[311826944,1705439465015,-500.0,0.00032876,2]
[311826945,1705439465024,-500.0,0.00032876,2]
[311826946,1705439465033,-500.0,0.00032876,2]
[311826947,1705439465043,-500.0,0.00032876,2]
[311826948,1705439465053,-500.0,0.00032876,2]
[311826949,1705439465062,-509.30877125,0.00032876,2]
[311826950,1705439465072,-500.0,0.00032876,2]
[311826951,1705439465082,-1923.16,0.00032876,2]
[311826952,1705439465091,-788.4,0.00032876,2]
[311826953,1705439465100,-15234.92,0.00032876,2]
[311826954,1705439465110,-1381.02,0.00032876,2]
[311826955,1705439465119,-500.0,0.00032876,2]
[311826956,1705439465129,-500.0,0.00032876,2]
[311826957,1705439465139,-500.0,0.00032876,2]
[311826958,1705439465149,-500.0,0.00032876,2]
[311826959,1705439465162,-500.0,0.00032876,2]
[311826960,1705439465172,-988.37,0.00032876,2]
[311826961,1705439465181,-5938.45,0.00032876,2]
[311826962,1705439465191,-500.0,0.00032876,2]
[311826963,1705439465201,-5171.15,0.00032876,5]
[311826964,1705439465210,-500.0,0.00032876,2]
[311826965,1705439465220,-1528.22,0.00032876,2]
[311826966,1705439465232,-9132.13,0.00032876,2]
[311826967,1705439465247,-500.0,0.00032876,2]
[311826968,1705439465257,-500.0,0.00032876,2]
[311826969,1705439465266,-500.0,0.00032876,2]
[311826970,1705439465277,-4257.32,0.00032876,2]
[311826971,1705439465286,-1515.57,0.00032876,2]
[311826972,1705439465297,-500.0,0.00032876,2]
[311826973,1705439465307,-918.54,0.00032876,2]
[311826974,1705439465317,-3798.34,0.00032876,2]
[311826975,1705439465328,-505.05521173,0.00032876,2]
[311826976,1705439465338,-738.75,0.00032876,2]
[311826977,1705439465348,-500.0,0.00032876,2]
[311826978,1705439465359,-1160.45,0.00032876,2]
[311826979,1705439465369,-6557.13,0.00032876,2]
[311826980,1705439465380,-500.0,0.00032876,2]
[311826981,1705439465390,-583.55,0.00032876,2]
[311826982,1705439465400,-500.0,0.00032876,2]
[311826983,1705439465411,-500.0,0.00032876,2]
[311826984,1705439465421,-2214.34,0.00032876,2]
[311826985,1705439465431,-1163.02,0.00032876,2]
[311826986,1705439465441,-894.42,0.00032876,2]
[311826987,1705439465451,-1132.7,0.00032876,2]
[311826988,1705439465461,-500.0,0.00032876,2]
[311826989,1705439465471,-5167.32,0.00032876,2]
[311826990,1705439465482,-502.37489212,0.00032876,2]
[311826991,1705439465491,-843.69,0.00032876,2]
[311826992,1705439465501,-2944.18,0.00032876,2]
[311826993,1705439465511,-500.0,0.00032876,2]
[311826994,1705439465521,-1375.53,0.00032876,2]
[311826995,1705439465531,-500.0,0.00032876,2]
[311826996,1705439465541,-500.0,0.00032876,2]
[311826997,1705439465551,-500.0,0.00032876,2]
[311826998,1705439465561,-500.0,0.00032876,2]
[311826999,1705439465571,-4907.69,0.00032876,2]
[311827000,1705439465581,-500.0,0.00032876,2]
[311827001,1705439465591,-500.0,0.00032876,2]
[311827002,1705439465601,-500.0,0.00032876,2]
[311827003,1705439465612,-500.0,0.00032876,2]
[311827004,1705439465622,-2671.68,0.00032876,2]
[311827005,1705439465632,-9359.73,0.00032876,2]
[311827006,1705439465642,-500.0,0.00032876,2]
[311827007,1705439465652,-500.0,0.00032876,2]
[311827008,1705439465662,-19282.29,0.00032876,2]
[311827009,1705439465672,-920.24,0.00032876,2]
[311827010,1705439465682,-500.0,0.00032876,2]
[311827011,1705439465692,-500.0,0.00032876,2]
[311827012,1705439465701,-500.0,0.00032876,2]
[311827013,1705439465711,-500.0,0.00032876,2]
[311827014,1705439465721,-500.0,0.00032876,2]
[311827015,1705439465731,-812.8,0.00032876,2]
[311827016,1705439465741,-500.0,0.00032876,2]
[311827017,1705439465751,-695.53,0.00032876,2]
[311827018,1705439465761,-1685.29,0.00032876,2]
[311827019,1705439465771,-500.0,0.00032876,2]
[311827020,1705439465781,-1463.55,0.00032876,2]
[311827021,1705439465791,-503.51,0.00032876,2]
[311827022,1705439465800,-4007.99,0.00032876,2]
[311827023,1705439465810,-500.0,0.00032876,2]
[311827024,1705439465820,-500.0,0.00032876,2]
[311827025,1705439465830,-858.45,0.00032876,2]
[311827026,1705439465839,-500.0,0.00032876,2]
[311827027,1705439465850,-500.0,0.00032876,2]
[311827028,1705439465861,-768.34,0.00032876,2]
[311827029,1705439465871,-500.0,0.00032876,2]
[311827030,1705439465881,-500.0,0.00032876,2]
[311827031,1705439465891,-500.0,0.00032876,2]
[311827032,1705439465902,-24407.37,0.00032876,2]
[311827033,1705439465912,-500.0,0.00032876,2]
[311827034,1705439465922,-6492.88,0.00032876,2]
[311827035,1705439465933,-1838.62,0.00032876,2]
[311827036,1705439465959,-500.0,0.00032876,2]
[311827037,1705439465979,-500.0,0.00032876,2]
[311827038,1705439465989,-500.0,0.00032876,2]
[311827039,1705439465999,-500.0,0.00032876,2]
[311827040,1705439466010,-7195.76,0.00032876,2]
[311827041,1705439466019,-500.0,0.00032876,2]
[311827042,1705439466029,-2955.64,0.00032876,2]
[311827043,1705439466039,-500.0,0.00032876,2]
[311827044,1705439466049,-1857.88,0.00032876,2]
[311827045,1705439466059,-500.0,0.00032876,2]
[311827046,1705439466069,-500.0,0.00032876,2]
[311827047,1705439466079,-500.0,0.00032876,2]
[311827048,1705439466089,-500.0,0.00032876,2]
[311827049,1705439466104,-500.0,0.00032876,2]
[311827050,1705439466115,-1091.73,0.00032876,2]
[311827051,1705439466125,-4112.39,0.00032876,2]
[311827052,1705439466135,-500.0,0.00032876,2]
[311827053,1705439466146,-500.0,0.00032876,2]
[311827054,1705439466159,-10950.19,0.00032876,2]
[311827055,1705439466170,-500.0,0.00032876,2]
[311827056,1705439466180,-2919.06,0.00032876,2]
[311827057,1705439466191,-500.0,0.00032876,2]
[311827058,1705439466202,-501.68728584,0.00032876,2]
[311827059,1705439466212,-1552.87,0.00032876,2]
[311827060,1705439466222,-727.02,0.00032876,2]
[311827061,1705439466235,-500.0,0.00032876,2]
[311827062,1705439466245,-176.7999342,0.00032876,2]
[311827063,1705439466256,-500.0,0.00032876,2]
[311827064,1705439466266,-500.0,0.00032876,2]
[311827065,1705439466276,-500.0,0.00032876,2]
[311827066,1705439466286,-500.0,0.00032876,2]
[311827067,1705439466297,-18697.70558692,0.00032876,2]
[311827068,1705439467288,-36533.56441308,0.00032876,2]
[311827069,1705439467297,-500.0,0.00032876,2]
[311827070,1705439467306,-500.0,0.00032876,2]
[311827071,1705439467315,-3843.95,0.00032876,2]
[311827072,1705439467324,-1831.16,0.00032876,2]
[311827073,1705439467334,-500.0,0.00032876,2]
[311827074,1705439467342,-500.0,0.00032876,2]
[311827075,1705439467352,-417.96818773,0.00032876,2]
[311827076,1705439467361,-13190.76,0.00032876,2]
[311827077,1705439467371,-500.0,0.00032876,2]
[311827078,1705439467381,-500.0,0.00032876,2]
[311827079,1705439467391,-1008.66,0.00032876,2]
[311827080,1705439467401,-500.0,0.00032876,2]
[311827081,1705439467410,-993.77,0.00032876,2]
[311827082,1705439467420,-500.0,0.00032876,2]
[311827083,1705439467430,-500.0,0.00032876,2]
[311827084,1705439467439,-500.0,0.00032876,2]
[311827085,1705439467449,-1579.85,0.00032876,2]
[311827086,1705439467459,-820.66,0.00032876,2]
[311827087,1705439467469,-6258.97,0.00032876,2]
[311827088,1705439467478,-807.9,0.00032876,2]
[311827089,1705439467488,-7435.16,0.00032876,2]
[311827090,1705439467498,-500.0,0.00032876,2]
[311827091,1705439467507,-500.0,0.00032876,2]
[311827092,1705439467517,-3568.53,0.00032876,2]
[311827093,1705439467526,-500.0,0.00032876,2]
[311827094,1705439467536,-4231.42,0.00032876,2]
[311827095,1705439467546,-523.91,0.00032876,2]
[311827096,1705439467556,-3976.44,0.00032876,2]
[311827097,1705439467567,-500.0,0.00032876,2]
[311827098,1705439467577,-500.0,0.00032876,2]
[311827099,1705439467586,-500.86000129,0.00032876,2]
[311827100,1705439467596,-2190.85,0.00032876,2]
[311827101,1705439467605,-1683.65,0.00032876,2]
[311827102,1705439467616,-886.19,0.00032876,2]
[311827103,1705439467625,-500.0,0.00032876,2]
[311827104,1705439467635,-1225.92,0.00032876,2]
[311827105,1705439467645,-500.0,0.00032876,2]
[311827106,1705439467654,-2557.18,0.00032876,2]
[311827107,1705439467664,-500.0,0.00032876,2]
[311827108,1705439467674,-524.0229422,0.00032876,2]
[311827109,1705439467684,-500.0,0.00032876,2]
[311827110,1705439467694,-500.0,0.00032876,2]
[311827111,1705439467703,-500.0,0.00032876,2]
[311827112,1705439467713,-500.0,0.00032876,2]
[311827113,1705439467723,-500.76007707,0.00032876,2]
[311827114,1705439467735,-1615.85,0.00032876,2]
[311827115,1705439467744,-500.0,0.00032876,2]
[311827116,1705439467755,-3619.26,0.00032876,2]
[311827117,1705439467765,-26196.33,0.00032876,2]
[311827118,1705439467775,-500.0,0.00032876,2]
[311827119,1705439467786,-3224.17,0.00032876,2]
[311827120,1705439467796,-825.42,0.00032876,2]
[311827121,1705439467806,-914.62,0.00032876,2]
[311827122,1705439467816,-4978.49,0.00032876,2]
[311827123,1705439467825,-1745.89,0.00032876,2]
[311827124,1705439467835,-533.58,0.00032876,2]
[311827125,1705439467844,-1020.26,0.00032876,2]
[311827126,1705439467853,-500.0,0.00032876,2]
[311827127,1705439467863,-500.0,0.00032876,2]
[311827128,1705439467872,-640.1,0.00032876,2]
[311827129,1705439467882,-981.62,0.00032876,2]
[311827130,1705439467892,-500.0,0.00032876,2]
[311827131,1705439467901,-1800.73,0.00032876,2]
[311827132,1705439467911,-4150.93,0.00032876,2]
[311827133,1705439467922,-500.0,0.00032876,2]
[311827134,1705439467932,-3803.69,0.00032876,2]
[311827135,1705439467941,-514.89098773,0.00032876,2]
[311827136,1705439467950,-898.19,0.00032876,2]
[311827137,1705439467959,-500.0,0.00032876,2]
[311827138,1705439467969,-1098.49,0.00032876,2]
[311827139,1705439467978,-1356.73,0.00032876,2]
[311827140,1705439467989,-500.0,0.00032876,2]
[311827141,1705439467998,-500.0,0.00032876,2]
[311827142,1705439468008,-2135.04,0.00032876,2]
[311827143,1705439468017,-500.0,0.00032876,2]
[311827144,1705439468026,-500.0,0.00032876,2]
[311827145,1705439468036,-181.42937293,0.00032876,2]
[311827146,1705439468046,-624.66495137,0.00032876,2]
[311827147,1705439468055,-500.0,0.00032876,2]
[311827148,1705439468065,-500.0,0.00032876,2]
[311827149,1705439468075,-1310.08,0.00032876,2]
[311827150,1705439468085,-949.62,0.00032876,2]
[311827151,1705439468094,-500.0,0.00032876,2]
[311827152,1705439468103,-500.0,0.00032876,2]
[311827153,1705439468113,-500.0,0.00032876,2]
[311827154,1705439468123,-3987.12,0.00032876,2]
[311827155,1705439468132,-500.0,0.00032876,2]
[311827156,1705439468142,-500.0,0.00032876,2]
[311827157,1705439468154,-2652.02,0.00032876,2]
[311827158,1705439468166,-500.0,0.00032876,2]
[311827159,1705439468176,-500.0,0.00032876,2]
[311827160,1705439468185,-500.0,0.00032876,2]
[311827161,1705439468197,-3012.43,0.00032876,2]
[311827162,1705439468207,-3789.62,0.00032876,2]
[311827163,1705439468216,-500.0,0.00032876,2]
[311827164,1705439468226,-500.0,0.00032876,2]
[311827165,1705439468240,-500.0,0.00032876,2]
[311827166,1705439468250,-500.0,0.00032876,2]
[311827167,1705439468261,-500.0,0.00032876,2]
[311827168,1705439468272,-500.0,0.00032876,2]
[311827169,1705439468281,-500.0,0.00032876,2]
[311827170,1705439468291,-500.0,0.00032876,2]
[311827171,1705439468301,-500.0,0.00032876,2]
[311827172,1705439468311,-500.0,0.00032876,2]
[311827173,1705439468321,-500.0,0.00032876,2]
[311827174,1705439468331,-500.0,0.00032876,2]
[311827175,1705439468341,-500.0,0.00032876,2]
[311827176,1705439468351,-500.0,0.00032876,2]
[311827177,1705439468360,-500.0,0.00032876,2]
[311827178,1705439468370,-500.0,0.00032876,2]
[311827179,1705439468379,-1024.09,0.00032876,2]
[311827180,1705439468389,-500.0,0.00032876,2]
[311827181,1705439468399,-990.35,0.00032876,2]
[311827182,1705439468409,-500.0,0.00032876,2]
[311827183,1705439468419,-500.0,0.00032876,2]
[311827184,1705439468429,-3613.05,0.00032876,2]
[311827185,1705439468438,-500.0,0.00032876,2]
[311827186,1705439468448,-501.86172917,0.00032876,2]
[311827187,1705439468458,-500.0,0.00032876,2]
[311827188,1705439468468,-500.0,0.00032876,2]
[311827189,1705439468478,-1318.11,0.00032876,2]
[311827190,1705439468488,-500.0,0.00032876,2]
[311827191,1705439468497,-629.16481769,0.00032876,2]
[311827192,1705439468507,-500.0,0.00032876,2]
[311827193,1705439468516,-4976.29,0.00032876,2]
[311827194,1705439468526,-2344.12,0.00032876,2]
[311827195,1705439468535,-500.0,0.00032876,2]
[311827196,1705439468545,-500.0,0.00032876,2]
[311827197,1705439468555,-1533.84,0.00032876,2]
[311827198,1705439468565,-568.16,0.00032876,2]
[311827199,1705439468574,-2326.88,0.00032876,2]
[311827200,1705439468584,-500.0,0.00032876,2]
[311827201,1705439468594,-500.0,0.00032876,2]
[311827202,1705439468604,-1190.62,0.00032876,2]
[311827203,1705439468613,-500.0,0.00032876,2]
[311827204,1705439468623,-1376.17,0.00032876,2]
[311827205,1705439468632,-1153.93205121,0.00032876,2]
[311827206,1705439468649,-5369.09793115,0.00032876,2]
[311827207,1705439469586,-151.0,0.00023,7]
[311827208,1705439469595,-231.86713029,0.00027,2]
[311827209,1705439469618,-267.51544772,0.00027,2]
[311827210,1705439469631,-499.38257801,0.00027,2]
[311827211,1705439469641,-499.38257801,0.00027,2]
[311827212,1705439469651,-499.38257801,0.00027,2]
[311827213,1705439469660,-499.38257801,0.00027,2]
[311827214,1705439469670,-499.38257801,0.00027,2]
[311827215,1705439469679,-499.38257801,0.00027,2]
[311827216,1705439469689,-499.38257801,0.00027,2]
[311827217,1705439469698,-499.38257801,0.00027,2]
[311827218,1705439469707,-499.38257801,0.00027,2]
[311827219,1705439469717,-499.38257801,0.00027,2]
[311827220,1705439469726,-499.38257801,0.00027,2]
[311827221,1705439469737,-170.14773908,0.00030208,2]
[311827222,1705439469748,-13496.41001764,0.00032876,2]
[311827223,1705439469758,-637.13916044,0.00032876,2]
[311827224,1705439469768,-3012.24,0.00032876,2]
[311827225,1705439469777,-500.0,0.00032876,2]
[311827226,1705439469787,-512.46170598,0.00032876,2]
[311827227,1705439469797,-500.0,0.00032876,2]
[311827228,1705439469806,-757.76,0.00032876,2]
[311827229,1705439469816,-1819.33,0.00032876,2]
[311827230,1705439469826,-500.0,0.00032876,2]
[311827231,1705439469837,-1001.35,0.00032876,2]
[311827232,1705439469846,-500.0,0.00032876,2]
[311827233,1705439469856,-602.48,0.00032876,2]
[311827234,1705439469866,-3076.84,0.00032876,2]
[311827235,1705439469875,-500.0,0.00032876,2]
[311827236,1705439469885,-1330.11,0.00032876,2]
[311827237,1705439469895,-1332.34,0.00032876,2]
[311827238,1705439469904,-921.99,0.00032876,2]
[311827239,1705439469913,-1097.17,0.00032876,2]
[311827240,1705439469923,-500.0,0.00032876,2]
[311827241,1705439469932,-14811.75,0.00032876,2]
[311827242,1705439469942,-500.0,0.00032876,2]
[311827243,1705439469951,-843.02,0.00032876,2]
[311827244,1705439469961,-500.0,0.00032876,2]
[311827245,1705439469970,-1269.53,0.00032876,2]
[311827246,1705439469980,-795.14,0.00032876,2]
[311827247,1705439469990,-851.39,0.00032876,2]
[311827248,1705439470000,-500.0,0.00032876,2]
[311827249,1705439470009,-500.0,0.00032876,2]
[311827250,1705439470019,-500.0,0.00032876,2]
[311827251,1705439470028,-500.0,0.00032876,2]
[311827252,1705439470038,-500.0,0.00032876,2]
[311827253,1705439470047,-500.0,0.00032876,2]
[311827254,1705439470057,-3139.55,0.00032876,2]
[311827255,1705439470067,-500.0,0.00032876,2]
[311827256,1705439470077,-500.0,0.00032876,2]
[311827257,1705439470086,-500.0,0.00032876,2]
[311827258,1705439470096,-500.0,0.00032876,2]
[311827259,1705439470106,-500.0,0.00032876,2]
[311827260,1705439470116,-500.0,0.00032876,2]
[311827261,1705439470126,-500.0,0.00032876,2]
[311827262,1705439470135,-500.0,0.00032876,2]
[311827263,1705439470145,-2368.39,0.00032876,2]
[311827264,1705439470159,-500.0,0.00032876,2]
[311827265,1705439470169,-500.0,0.00032876,2]
[311827266,1705439470178,-500.0,0.00032876,2]
[311827267,1705439470188,-500.0,0.00032876,2]
[311827268,1705439470198,-500.0,0.00032876,2]
[311827269,1705439470208,-500.0,0.00032876,2]
[311827270,1705439470218,-500.0,0.00032876,2]
[311827271,1705439470231,-500.0,0.00032876,2]
[311827272,1705439470243,-3737.24,0.00032876,2]
[311827273,1705439470253,-500.0,0.00032876,2]
[311827274,1705439470263,-744.66,0.00032876,2]
[311827275,1705439470273,-500.0,0.00032876,2]
[311827276,1705439470283,-500.0,0.00032876,2]
[311827277,1705439470292,-500.0,0.00032876,2]
[311827278,1705439470302,-500.0,0.00032876,2]
[311827279,1705439470311,-500.0,0.00032876,2]
[311827280,1705439470321,-190.35010721,0.00032876,2]
[311827281,1705439470331,-1807.14,0.00032876,2]
[311827282,1705439470341,-500.0,0.00032876,2]
[311827283,1705439470351,-1000.0,0.00032876,2]
[311827284,1705439470360,-500.0,0.00032876,2]
[311827285,1705439470370,-976.31,0.00032876,2]
[311827286,1705439470380,-500.0,0.00032876,2]
[311827287,1705439470390,-500.0,0.00032876,2]
[311827288,1705439470400,-500.0,0.00032876,2]
[311827289,1705439470409,-500.0,0.00032876,2]
[311827290,1705439470419,-564.12,0.00032876,2]
[311827291,1705439470429,-500.0,0.00032876,2]
[311827292,1705439470439,-500.0,0.00032876,2]
[311827293,1705439470449,-500.0,0.00032876,2]
[311827294,1705439470458,-604.67,0.00032876,2]
[311827295,1705439470468,-512.46263887,0.00032876,2]
[311827296,1705439470478,-1742.28,0.00032876,2]
[311827297,1705439470489,-500.0,0.00032876,2]
[311827298,1705439470498,-500.0,0.00032876,2]
[311827299,1705439470509,-500.0,0.00032876,2]
[311827300,1705439470519,-538.4,0.00032876,2]
[311827301,1705439470528,-3462.32,0.00032876,2]
[311827302,1705439470538,-12974.24,0.00032876,2]